[Event "Early-Titled-Tuesday-Blitz-January-16-2024"]
[Site "Chess.com"]
[Date "2024.01.16"]
[Round "5"]
[White "YurasovMat-2012"]
[Black "kaanadayhamle"]
[Result "1-0"]
[WhiteElo "2591"]
[BlackElo "2397"]
[TimeControl "180+1"]
[EndTime "8:59:30 PST"]
[Termination "YurasovMat-2012 won by checkmate"]

1. e4 {[%clk 0:03:00.9]} 1... c6 {[%clk 0:02:59.5]} 2. Nf3 {[%clk 0:02:59.4]}
2... d5 {[%clk 0:02:59.9]} 3. d3 {[%clk 0:02:58.8]} 3... dxe4 {[%clk 0:02:52.5]}
4. dxe4 {[%clk 0:02:59.7]} 4... Qxd1+ {[%clk 0:02:52.7]} 5. Kxd1 {[%clk
0:03:00.3]} 5... Nf6 {[%clk 0:02:53.3]} 6. Nbd2 {[%clk 0:02:58.7]} 6... Bg4
{[%clk 0:02:48.1]} 7. Bd3 {[%clk 0:02:57]} 7... Nbd7 {[%clk 0:02:46.4]} 8. h3
{[%clk 0:02:56.4]} 8... Bxf3+ {[%clk 0:02:43.6]} 9. Nxf3 {[%clk 0:02:55]} 9...
e5 {[%clk 0:02:44.3]} 10. Ke2 {[%clk 0:02:53.1]} 10... Bc5 {[%clk 0:02:43.1]}
11. c3 {[%clk 0:02:52.2]} 11... h6 {[%clk 0:02:39.2]} 12. Bc2 {[%clk 0:02:51.7]}
12... O-O-O {[%clk 0:02:36.7]} 13. Rd1 {[%clk 0:02:46.4]} 13... Rhe8 {[%clk
0:02:36.1]} 14. a4 {[%clk 0:02:45.9]} 14... a5 {[%clk 0:02:35.4]} 15. Nd2 {[%clk
0:02:42]} 15... g5 {[%clk 0:02:27.4]} 16. Nc4 {[%clk 0:02:36]} 16... b6 {[%clk
0:02:19.7]} 17. Be3 {[%clk 0:02:33.4]} 17... Bxe3 {[%clk 0:02:15.6]} 18. Nd6+
{[%clk 0:02:30.4]} 18... Kc7 {[%clk 0:02:00.5]} 19. Nxe8+ {[%clk 0:02:28.5]}
19... Rxe8 {[%clk 0:02:01.4]} 20. Kxe3 {[%clk 0:02:28.9]} 20... Nc5 {[%clk
0:01:59.8]} 21. Rd2 {[%clk 0:02:23.2]} 21... Ne6 {[%clk 0:01:46.9]} 22. g3
{[%clk 0:02:19.4]} 22... Re7 {[%clk 0:01:47.2]} 23. Rad1 {[%clk 0:02:18.4]}
23... Nd7 {[%clk 0:01:45.5]} 24. Bb3 {[%clk 0:02:13.4]} 24... Nec5 {[%clk
0:01:42.5]} 25. Bc2 {[%clk 0:02:11.6]} 25... Ne6 {[%clk 0:01:41.9]} 26. b3
{[%clk 0:02:01.6]} 26... Ndc5 {[%clk 0:01:39.4]} 27. Kf3 {[%clk 0:01:49.7]}
27... h5 {[%clk 0:01:36.3]} 28. Rd6 {[%clk 0:01:36.3]} 28... Nb7 {[%clk
0:01:25.7]} 29. R6d2 {[%clk 0:01:35.5]} 29... Nbc5 {[%clk 0:01:26]} 30. Ke3
{[%clk 0:01:30.1]} 30... Kc8 {[%clk 0:01:10]} 31. h4 {[%clk 0:01:24.2]} 31...
gxh4 {[%clk 0:01:04.3]} 32. gxh4 {[%clk 0:01:25.1]} 32... Nf4 {[%clk 0:01:05]}
33. Rg1 {[%clk 0:01:24.7]} 33... Nce6 {[%clk 0:00:54.4]} 34. b4 {[%clk
0:01:22.6]} 34... Kc7 {[%clk 0:00:50.5]} 35. Bb3 {[%clk 0:01:18.3]} 35... Ng6
{[%clk 0:00:19.5]} 36. Bxe6 {[%clk 0:01:10.7]} 36... Rxe6 {[%clk 0:00:20.4]} 37.
bxa5 {[%clk 0:01:09.1]} 37... bxa5 {[%clk 0:00:20.4]} 38. Rg5 {[%clk 0:01:08]}
38... Nxh4 {[%clk 0:00:20.5]} 39. Rxh5 {[%clk 0:01:08.1]} 39... Ng2+ {[%clk
0:00:21]} 40. Kf3 {[%clk 0:01:07.4]} 40... Nf4 {[%clk 0:00:19.9]} 41. Rf5 {[%clk
0:01:06.9]} 41... f6 {[%clk 0:00:11.2]} 42. Rd1 {[%clk 0:01:04.7]} 42... Kb6
{[%clk 0:00:09.9]} 43. Rd8 {[%clk 0:00:56.8]} 43... Kc5 {[%clk 0:00:08.3]} 44.
Ra8 {[%clk 0:00:50.3]} 44... Kb6 {[%clk 0:00:08]} 45. Rf8 {[%clk 0:00:49.9]}
45... Rd6 {[%clk 0:00:05.7]} 46. R5xf6 {[%clk 0:00:47.4]} 46... Rd3+ {[%clk
0:00:05.3]} 47. Kg4 {[%clk 0:00:47.6]} 47... Rxc3 {[%clk 0:00:05.6]} 48. Kf5
{[%clk 0:00:46.8]} 48... Nd3 {[%clk 0:00:05.3]} 49. f3 {[%clk 0:00:42.8]} 49...
Nb4 {[%clk 0:00:03.7]} 50. Kxe5 {[%clk 0:00:41.8]} 50... Nd3+ {[%clk 0:00:03.7]}
51. Kd4 {[%clk 0:00:41.8]} 51... Ra3 {[%clk 0:00:03.2]} 52. Rc8 {[%clk 0:00:41]}
52... Nb4 {[%clk 0:00:03.2]} 53. Ke5 {[%clk 0:00:33.2]} 53... Rxa4 {[%clk
0:00:02.5]} 54. Ke6 {[%clk 0:00:33.2]} 54... Ra3 {[%clk 0:00:02.3]} 55. e5
{[%clk 0:00:33]} 55... Re3 {[%clk 0:00:02.4]} 56. f4 {[%clk 0:00:30.7]} 56... a4
{[%clk 0:00:03.3]} 57. Ra8 {[%clk 0:00:20.6]} 57... Kc5 {[%clk 0:00:04.2]} 58.
Rxa4 {[%clk 0:00:20.4]} 58... Kb5 {[%clk 0:00:05]} 59. Ra8 {[%clk 0:00:19.5]}
59... c5 {[%clk 0:00:05.4]} 60. Rb8+ {[%clk 0:00:19.5]} 60... Ka4 {[%clk
0:00:06.1]} 61. Kf7 {[%clk 0:00:19.3]} 61... c4 {[%clk 0:00:06.4]} 62. Rfb6
{[%clk 0:00:18]} 62... Nd5 {[%clk 0:00:06]} 63. Ra6# {[%clk 0:00:17.8]} 1-0

[Event "Early-Titled-Tuesday-Blitz-January-16-2024"]
[Site "Chess.com"]
[Date "2024.01.16"]
[Round "5"]
[White "Leebit02"]
[Black "vanyakuba"]
[Result "1/2-1/2"]
[WhiteElo "2551"]
[BlackElo "2320"]
[TimeControl "180+1"]
[EndTime "8:59:32 PST"]
[Termination "Game drawn - insufficient material"]

1. d4 {[%clk 0:02:56.7]} 1... Nf6 {[%clk 0:02:59.9]} 2. c4 {[%clk 0:02:56.4]}
2... Nc6 {[%clk 0:02:59.6]} 3. Nc3 {[%clk 0:02:52.9]} 3... e5 {[%clk 0:02:59.2]}
4. d5 {[%clk 0:02:49.7]} 4... Ne7 {[%clk 0:02:59.6]} 5. g3 {[%clk 0:02:32.9]}
5... Ng6 {[%clk 0:02:58.5]} 6. Bg2 {[%clk 0:02:32.9]} 6... Bc5 {[%clk
0:02:57.7]} 7. e3 {[%clk 0:02:32.3]} 7... a6 {[%clk 0:02:51.1]} 8. Nge2 {[%clk
0:02:30.7]} 8... d6 {[%clk 0:02:51.1]} 9. a3 {[%clk 0:02:26.6]} 9... O-O {[%clk
0:02:50.2]} 10. O-O {[%clk 0:02:26.4]} 10... Bd7 {[%clk 0:02:25.3]} 11. h3
{[%clk 0:02:25.9]} 11... h5 {[%clk 0:02:05.9]} 12. Kh2 {[%clk 0:02:24.4]} 12...
h4 {[%clk 0:02:03.3]} 13. g4 {[%clk 0:02:23.3]} 13... Nh7 {[%clk 0:01:11.9]} 14.
f4 {[%clk 0:02:12]} 14... exf4 {[%clk 0:00:57]} 15. exf4 {[%clk 0:02:12]} 15...
Nf6 {[%clk 0:00:49.5]} 16. Nd4 {[%clk 0:02:02.4]} 16... Re8 {[%clk 0:00:43.3]}
17. Qd3 {[%clk 0:01:56.8]} 17... Bxg4 {[%clk 0:00:36.3]} 18. hxg4 {[%clk
0:01:45.9]} 18... Nxg4+ {[%clk 0:00:37.2]} 19. Kh1 {[%clk 0:01:46.2]} 19... Qf6
{[%clk 0:00:35.2]} 20. Nce2 {[%clk 0:01:36.7]} 20... Rxe2 {[%clk 0:00:20.6]} 21.
Qxe2 {[%clk 0:01:33.5]} 21... Nh6 {[%clk 0:00:17.2]} 22. Nb3 {[%clk 0:01:26.4]}
22... Nf5 {[%clk 0:00:14.4]} 23. Kh2 {[%clk 0:00:55.3]} 23... Ng3 {[%clk
0:00:14.5]} 24. Qf3 {[%clk 0:00:55.2]} 24... Nxf1+ {[%clk 0:00:15]} 25. Qxf1
{[%clk 0:00:55.5]} 25... Bd4 {[%clk 0:00:09.6]} 26. Nxd4 {[%clk 0:00:54.1]}
26... Qxd4 {[%clk 0:00:10.5]} 27. Qg1 {[%clk 0:00:48.9]} 27... Qd3 {[%clk
0:00:06.7]} 28. Be3 {[%clk 0:00:47.5]} 28... Re8 {[%clk 0:00:05.8]} 29. Re1
{[%clk 0:00:44.7]} 29... Kh8 {[%clk 0:00:03]} 30. Qf2 {[%clk 0:00:42.6]} 30...
Qxc4 {[%clk 0:00:03]} 31. f5 {[%clk 0:00:40.2]} 31... Ne5 {[%clk 0:00:02.8]} 32.
Qf4 {[%clk 0:00:30.4]} 32... Ng4+ {[%clk 0:00:02.5]} 33. Kh3 {[%clk 0:00:27.8]}
33... Qxf4 {[%clk 0:00:03.1]} 34. Bxf4 {[%clk 0:00:27.7]} 34... Nf2+ {[%clk
0:00:03.2]} 35. Kxh4 {[%clk 0:00:25.9]} 35... Rxe1 {[%clk 0:00:04.1]} 36. Bg5
{[%clk 0:00:20.5]} 36... Re2 {[%clk 0:00:04.4]} 37. Bf3 {[%clk 0:00:20.1]} 37...
Rxb2 {[%clk 0:00:04.2]} 38. f6 {[%clk 0:00:20.7]} 38... gxf6 {[%clk 0:00:04.1]}
39. Bxf6+ {[%clk 0:00:20.9]} 39... Kg8 {[%clk 0:00:04.8]} 40. Bxb2 {[%clk
0:00:21.2]} 40... Nd3 {[%clk 0:00:04.8]} 41. Bd4 {[%clk 0:00:21.2]} 41... Nc5
{[%clk 0:00:03.5]} 42. Bxc5 {[%clk 0:00:20.7]} 42... dxc5 {[%clk 0:00:04.4]} 43.
Kg5 {[%clk 0:00:21.1]} 43... Kf8 {[%clk 0:00:05]} 44. Kf5 {[%clk 0:00:21.6]}
44... Ke7 {[%clk 0:00:05.4]} 45. Ke5 {[%clk 0:00:22]} 45... f6+ {[%clk
0:00:05.9]} 46. Kf5 {[%clk 0:00:22.3]} 46... Kd6 {[%clk 0:00:06.8]} 47. Kxf6
{[%clk 0:00:22.4]} 47... b5 {[%clk 0:00:06.4]} 48. Kf5 {[%clk 0:00:22.5]} 48...
b4 {[%clk 0:00:06]} 49. axb4 {[%clk 0:00:21.3]} 49... cxb4 {[%clk 0:00:06.9]}
50. Ke4 {[%clk 0:00:21.9]} 50... Kc5 {[%clk 0:00:07]} 51. Kd3 {[%clk 0:00:22.4]}
51... a5 {[%clk 0:00:06.4]} 52. Be4 {[%clk 0:00:22.2]} 52... a4 {[%clk
0:00:06.2]} 53. Bf3 {[%clk 0:00:19]} 53... Kb5 {[%clk 0:00:06.5]} 54. Kd4 {[%clk
0:00:17.9]} 54... a3 {[%clk 0:00:04.8]} 55. d6 {[%clk 0:00:15.6]} 55... cxd6
{[%clk 0:00:04.3]} 56. Bd5 {[%clk 0:00:15.8]} 56... Ka4 {[%clk 0:00:04.7]} 57.
Bc6+ {[%clk 0:00:15.3]} 57... Ka5 {[%clk 0:00:04]} 58. Bd5 {[%clk 0:00:14.5]}
58... Kb5 {[%clk 0:00:04.1]} 59. Bb3 {[%clk 0:00:14.2]} 59... Ka5 {[%clk
0:00:03.8]} 60. Kd5 {[%clk 0:00:14.1]} 60... Kb5 {[%clk 0:00:04.1]} 61. Kxd6
{[%clk 0:00:13.8]} 61... Ka5 {[%clk 0:00:04.2]} 62. Kc5 {[%clk 0:00:14]} 62...
a2 {[%clk 0:00:04.4]} 63. Bxa2 {[%clk 0:00:14.2]} 63... b3 {[%clk 0:00:04.9]}
64. Bxb3 {[%clk 0:00:14.3]} 1/2-1/2

[Event "Early-Titled-Tuesday-Blitz-January-16-2024"]
[Site "Chess.com"]
[Date "2024.01.16"]
[Round "5"]
[White "Onischuk_V"]
[Black "Road2GM3000"]
[Result "1/2-1/2"]
[WhiteElo "2793"]
[BlackElo "2493"]
[TimeControl "180+1"]
[EndTime "8:59:34 PST"]
[Termination "Game drawn by repetition"]

1. e4 {[%clk 0:02:58.5]} 1... c5 {[%clk 0:02:59.7]} 2. Nf3 {[%clk 0:02:58]} 2...
d6 {[%clk 0:03:00.4]} 3. d4 {[%clk 0:02:47.6]} 3... cxd4 {[%clk 0:02:59.3]} 4.
Nxd4 {[%clk 0:02:47.3]} 4... Nf6 {[%clk 0:03:00]} 5. Nc3 {[%clk 0:02:44.1]} 5...
a6 {[%clk 0:03:00.7]} 6. a4 {[%clk 0:02:40.1]} 6... e5 {[%clk 0:02:59.9]} 7. Nf3
{[%clk 0:02:40.2]} 7... Be7 {[%clk 0:02:57.7]} 8. Bc4 {[%clk 0:02:39.9]} 8...
Be6 {[%clk 0:02:57.1]} 9. Qe2 {[%clk 0:02:39.5]} 9... Nc6 {[%clk 0:02:48.5]} 10.
O-O {[%clk 0:02:36.1]} 10... O-O {[%clk 0:02:43.9]} 11. Rd1 {[%clk 0:02:35.2]}
11... Bxc4 {[%clk 0:02:32.3]} 12. Qxc4 {[%clk 0:02:34.7]} 12... h6 {[%clk
0:02:31]} 13. Be3 {[%clk 0:02:24.8]} 13... Rc8 {[%clk 0:02:28.6]} 14. Qe2 {[%clk
0:02:20]} 14... Qc7 {[%clk 0:02:26.2]} 15. Nd2 {[%clk 0:02:19.2]} 15... Nd8
{[%clk 0:02:23.6]} 16. a5 {[%clk 0:02:11.9]} 16... Ne6 {[%clk 0:02:19.1]} 17.
Ra4 {[%clk 0:02:11.9]} 17... Qb8 {[%clk 0:02:18.3]} 18. Nc4 {[%clk 0:02:11.2]}
18... Nc5 {[%clk 0:01:54.1]} 19. Bxc5 {[%clk 0:02:10.5]} 19... Rxc5 {[%clk
0:01:55]} 20. Nb6 {[%clk 0:02:02.6]} 20... Bd8 {[%clk 0:01:42.2]} 21. Nbd5
{[%clk 0:02:01.6]} 21... Nxd5 {[%clk 0:01:25.8]} 22. Nxd5 {[%clk 0:02:01.3]}
22... Rxa5 {[%clk 0:01:16.8]} 23. Rxa5 {[%clk 0:01:52.1]} 23... Bxa5 {[%clk
0:01:16.4]} 24. Qg4 {[%clk 0:01:52.6]} 24... Bd8 {[%clk 0:01:14.4]} 25. h4
{[%clk 0:01:50.1]} 25... Kh8 {[%clk 0:00:56]} 26. Rd3 {[%clk 0:01:48.6]} 26...
b5 {[%clk 0:00:43.8]} 27. Rg3 {[%clk 0:01:48.1]} 27... Rg8 {[%clk 0:00:44.2]}
28. Qd7 {[%clk 0:01:47.7]} 28... Bxh4 {[%clk 0:00:38.3]} 29. Rh3 {[%clk
0:01:42.5]} 29... Qd8 {[%clk 0:00:35.5]} 30. Qb7 {[%clk 0:01:19.9]} 30... Rf8
{[%clk 0:00:22.8]} 31. g3 {[%clk 0:01:13.9]} 31... Bg5 {[%clk 0:00:20.5]} 32.
Qxa6 {[%clk 0:01:05.4]} 32... Qb8 {[%clk 0:00:18.6]} 33. Kg2 {[%clk 0:00:58.3]}
33... f5 {[%clk 0:00:18.5]} 34. Qc6 {[%clk 0:00:29.5]} 34... fxe4 {[%clk
0:00:16.2]} 35. Qd7 {[%clk 0:00:29.6]} 35... Qc8 {[%clk 0:00:12]} 36. Qxc8
{[%clk 0:00:22.6]} 36... Rxc8 {[%clk 0:00:12.1]} 37. Nc3 {[%clk 0:00:19.5]}
37... b4 {[%clk 0:00:09.6]} 38. Nxe4 {[%clk 0:00:19.6]} 38... Be7 {[%clk
0:00:07.9]} 39. c3 {[%clk 0:00:14.7]} 39... d5 {[%clk 0:00:08.4]} 40. Nd2 {[%clk
0:00:13.8]} 40... bxc3 {[%clk 0:00:09.1]} 41. bxc3 {[%clk 0:00:13.6]} 41... Rxc3
{[%clk 0:00:10]} 42. Nf3 {[%clk 0:00:13.9]} 42... Bf6 {[%clk 0:00:09.7]} 43. Rh1
{[%clk 0:00:13.3]} 43... e4 {[%clk 0:00:10]} 44. Nh2 {[%clk 0:00:12.6]} 44...
Rc2 {[%clk 0:00:10.3]} 45. Ng4 {[%clk 0:00:12.3]} 45... Bd4 {[%clk 0:00:10.2]}
46. Rd1 {[%clk 0:00:12.2]} 46... Bb6 {[%clk 0:00:06.5]} 47. Rxd5 {[%clk
0:00:11.7]} 47... Kg8 {[%clk 0:00:06.2]} 48. Re5 {[%clk 0:00:11.4]} 48... e3
{[%clk 0:00:04.7]} 49. Nxe3 {[%clk 0:00:11]} 49... Bxe3 {[%clk 0:00:05.4]} 50.
Rxe3 {[%clk 0:00:11]} 50... Rc7 {[%clk 0:00:06.2]} 51. f4 {[%clk 0:00:11]} 51...
Ra7 {[%clk 0:00:06.1]} 52. g4 {[%clk 0:00:11.3]} 52... Kf7 {[%clk 0:00:06.7]}
53. Kg3 {[%clk 0:00:11.9]} 53... Ra6 {[%clk 0:00:06.7]} 54. Rb3 {[%clk
0:00:12.4]} 54... Kf6 {[%clk 0:00:07.2]} 55. Kh4 {[%clk 0:00:12.7]} 55... Kg6
{[%clk 0:00:06.1]} 56. Rb4 {[%clk 0:00:12.3]} 56... Ra1 {[%clk 0:00:05.9]} 57.
Rb6+ {[%clk 0:00:12]} 57... Kh7 {[%clk 0:00:06.5]} 58. f5 {[%clk 0:00:12.1]}
58... Rh1+ {[%clk 0:00:06.8]} 59. Kg3 {[%clk 0:00:12.5]} 59... Rg1+ {[%clk
0:00:07.6]} 60. Kf4 {[%clk 0:00:12.9]} 60... Rf1+ {[%clk 0:00:08.3]} 61. Ke5
{[%clk 0:00:13.3]} 61... Re1+ {[%clk 0:00:08.8]} 62. Kd5 {[%clk 0:00:12.8]}
62... Rd1+ {[%clk 0:00:08.3]} 63. Ke6 {[%clk 0:00:12.9]} 63... Rd4 {[%clk
0:00:08.5]} 64. f6 {[%clk 0:00:09.3]} 64... gxf6 {[%clk 0:00:07.4]} 65. Kxf6
{[%clk 0:00:08.2]} 65... Rxg4 {[%clk 0:00:07.5]} 66. Rb7+ {[%clk 0:00:08.7]}
66... Kh8 {[%clk 0:00:07.6]} 67. Rb8+ {[%clk 0:00:09.3]} 67... Kh7 {[%clk
0:00:08.3]} 68. Rb7+ {[%clk 0:00:08.8]} 68... Kh8 {[%clk 0:00:09]} 69. Rb8+
{[%clk 0:00:09.5]} 69... Kh7 {[%clk 0:00:09.6]} 70. Rb7+ {[%clk 0:00:10.2]}
1/2-1/2

[Event "Early-Titled-Tuesday-Blitz-January-16-2024"]
[Site "Chess.com"]
[Date "2024.01.16"]
[Round "5"]
[White "Anton_Demchenko"]
[Black "francyIM"]
[Result "0-1"]
[WhiteElo "2977"]
[BlackElo "2843"]
[TimeControl "180+1"]
[EndTime "8:59:36 PST"]
[Termination "francyIM won on time"]

1. e4 {[%clk 0:03:00.9]} 1... e5 {[%clk 0:02:57.7]} 2. Nf3 {[%clk 0:03:00.5]}
2... Nc6 {[%clk 0:02:55.7]} 3. Bc4 {[%clk 0:03:00.6]} 3... Bc5 {[%clk
0:02:55.4]} 4. d3 {[%clk 0:03:00.6]} 4... Nf6 {[%clk 0:02:55.4]} 5. Bg5 {[%clk
0:03:00.7]} 5... h6 {[%clk 0:02:55.3]} 6. Bh4 {[%clk 0:03:01]} 6... d6 {[%clk
0:02:55.7]} 7. c3 {[%clk 0:03:00.8]} 7... Bb6 {[%clk 0:02:51.1]} 8. Nbd2 {[%clk
0:03:00.7]} 8... Qe7 {[%clk 0:02:51.1]} 9. a4 {[%clk 0:03:00.9]} 9... a5 {[%clk
0:02:49.8]} 10. O-O {[%clk 0:03:00]} 10... Be6 {[%clk 0:02:49.3]} 11. Bb5 {[%clk
0:02:52.9]} 11... g5 {[%clk 0:02:47.8]} 12. Bg3 {[%clk 0:02:52.7]} 12... Nd7
{[%clk 0:02:42.9]} 13. Nc4 {[%clk 0:02:43.4]} 13... f5 {[%clk 0:02:40]} 14. exf5
{[%clk 0:02:41.7]} 14... Bxf5 {[%clk 0:02:39.7]} 15. d4 {[%clk 0:02:37.2]} 15...
e4 {[%clk 0:02:38.8]} 16. Nfd2 {[%clk 0:02:32.8]} 16... d5 {[%clk 0:02:35.4]}
17. Ne3 {[%clk 0:02:30.6]} 17... Be6 {[%clk 0:02:34.9]} 18. Nxe4 {[%clk
0:02:00.8]} 18... dxe4 {[%clk 0:02:31.1]} 19. d5 {[%clk 0:02:01.1]} 19... Bxe3
{[%clk 0:02:07.2]} 20. fxe3 {[%clk 0:01:58.4]} 20... O-O-O {[%clk 0:02:00.2]}
21. dxe6 {[%clk 0:01:34.7]} 21... Qxe6 {[%clk 0:01:56]} 22. Qh5 {[%clk
0:01:21.7]} 22... Nce5 {[%clk 0:01:42.9]} 23. b4 {[%clk 0:01:03]} 23... Nf6
{[%clk 0:01:20.9]} 24. Qe2 {[%clk 0:01:02.6]} 24... c6 {[%clk 0:01:16.1]} 25.
bxa5 {[%clk 0:00:40.5]} 25... cxb5 {[%clk 0:01:11.9]} 26. Qxb5 {[%clk
0:00:37.5]} 26... Rd5 {[%clk 0:01:11.1]} 27. Qb3 {[%clk 0:00:38.1]} 27... Nfd7
{[%clk 0:00:58.6]} 28. a6 {[%clk 0:00:28.8]} 28... bxa6 {[%clk 0:00:55.1]} 29.
Rab1 {[%clk 0:00:28.2]} 29... Qc6 {[%clk 0:00:52.3]} 30. c4 {[%clk 0:00:20.9]}
30... Rc5 {[%clk 0:00:49.6]} 31. Rf5 {[%clk 0:00:09.9]} 31... Re8 {[%clk
0:00:47.7]} 32. h3 {[%clk 0:00:07.7]} 32... Nd3 {[%clk 0:00:36.7]} 33. Rf7
{[%clk 0:00:06.6]} 33... N3e5 {[%clk 0:00:30.8]} 34. Rh7 {[%clk 0:00:06.6]}
34... Rxc4 {[%clk 0:00:26.2]} 35. Bxe5 {[%clk 0:00:06.2]} 35... Rxe5 {[%clk
0:00:25.6]} 36. Rh8+ {[%clk 0:00:06.4]} 36... Kc7 {[%clk 0:00:25.6]} 37. Rh7
{[%clk 0:00:06.8]} 37... Rec5 {[%clk 0:00:23.2]} 38. Kh2 {[%clk 0:00:06.1]}
38... Rc1 {[%clk 0:00:22.5]} 39. Rxc1 {[%clk 0:00:05.6]} 39... Qd6+ {[%clk
0:00:19.6]} 40. Kg1 {[%clk 0:00:05.2]} 40... Rxc1+ {[%clk 0:00:19.6]} 41. Kf2
{[%clk 0:00:06]} 41... Rc6 {[%clk 0:00:12.6]} 42. Rf7 {[%clk 0:00:05.2]} 42...
Qd2+ {[%clk 0:00:11.3]} 43. Kg3 {[%clk 0:00:05.8]} 43... Rc3 {[%clk 0:00:11.5]}
44. Qe6 {[%clk 0:00:03]} 44... Qd6+ {[%clk 0:00:10.5]} 45. Qxd6+ {[%clk
0:00:02.8]} 45... Kxd6 {[%clk 0:00:11.4]} 46. Rh7 {[%clk 0:00:03.4]} 46... Nf6
{[%clk 0:00:10.8]} 47. Rxh6 {[%clk 0:00:03.4]} 47... Ke5 {[%clk 0:00:11.5]} 48.
Rg6 {[%clk 0:00:03.2]} 48... Kf5 {[%clk 0:00:10.2]} 49. Rg7 {[%clk 0:00:03.7]}
49... Rxe3+ {[%clk 0:00:10.6]} 50. Kf2 {[%clk 0:00:04.4]} 50... Ra3 {[%clk
0:00:11.5]} 51. g4+ {[%clk 0:00:02.7]} 51... Kf4 {[%clk 0:00:11.5]} 52. Rf7
{[%clk 0:00:03.3]} 52... Ra2+ {[%clk 0:00:12]} 53. Ke1 {[%clk 0:00:03.7]} 53...
Ke5 {[%clk 0:00:12.7]} 54. Rg7 {[%clk 0:00:03.2]} 54... Nd5 {[%clk 0:00:12.8]}
55. Rxg5+ {[%clk 0:00:03.5]} 55... Kd4 {[%clk 0:00:13.7]} 56. h4 {[%clk
0:00:02]} 56... Nf4 {[%clk 0:00:13.3]} 57. h5 {[%clk 0:00:01.7]} 57... Ke3
{[%clk 0:00:12.9]} 58. Kd1 {[%clk 0:00:02.2]} 58... Nd3 {[%clk 0:00:13.2]} 0-1

[Event "Early-Titled-Tuesday-Blitz-January-16-2024"]
[Site "Chess.com"]
[Date "2024.01.16"]
[Round "5"]
[White "NinoMaisuradze"]
[Black "jk13"]
[Result "0-1"]
[WhiteElo "2312"]
[BlackElo "2675"]
[TimeControl "180+1"]
[EndTime "8:59:39 PST"]
[Termination "jk13 won on time"]

1. d4 {[%clk 0:03:00.9]} 1... Nf6 {[%clk 0:02:57.2]} 2. c4 {[%clk 0:02:59.1]}
2... e6 {[%clk 0:02:57.8]} 3. Nf3 {[%clk 0:02:58.5]} 3... Bb4+ {[%clk
0:02:52.3]} 4. Bd2 {[%clk 0:02:58.4]} 4... Bxd2+ {[%clk 0:02:51.4]} 5. Nbxd2
{[%clk 0:02:59.3]} 5... O-O {[%clk 0:02:51.7]} 6. e3 {[%clk 0:02:59.6]} 6... d6
{[%clk 0:02:52.6]} 7. Bd3 {[%clk 0:03:00]} 7... Qe7 {[%clk 0:02:53.4]} 8. O-O
{[%clk 0:03:00]} 8... e5 {[%clk 0:02:54.2]} 9. Bc2 {[%clk 0:02:58.8]} 9... c5
{[%clk 0:02:53.9]} 10. dxe5 {[%clk 0:02:54.3]} 10... dxe5 {[%clk 0:02:53.7]} 11.
Ne4 {[%clk 0:02:53]} 11... Rd8 {[%clk 0:02:50.1]} 12. Nxf6+ {[%clk 0:02:51.7]}
12... Qxf6 {[%clk 0:02:49.8]} 13. Qe2 {[%clk 0:02:52.5]} 13... Bf5 {[%clk
0:02:42.2]} 14. Bxf5 {[%clk 0:02:49.5]} 14... Qxf5 {[%clk 0:02:42.1]} 15. Rfd1
{[%clk 0:02:50.4]} 15... Nc6 {[%clk 0:02:42.6]} 16. Rd5 {[%clk 0:02:48.4]} 16...
Rxd5 {[%clk 0:02:09.6]} 17. cxd5 {[%clk 0:02:49.3]} 17... Ne7 {[%clk 0:02:05.9]}
18. e4 {[%clk 0:02:48.9]} 18... Qf6 {[%clk 0:02:06.4]} 19. Qb5 {[%clk
0:02:37.1]} 19... b6 {[%clk 0:01:58.6]} 20. Rd1 {[%clk 0:02:33.3]} 20... Rd8
{[%clk 0:01:53.8]} 21. a4 {[%clk 0:02:24.5]} 21... Nc8 {[%clk 0:01:49.6]} 22.
Nd2 {[%clk 0:02:08.8]} 22... Nd6 {[%clk 0:01:45.4]} 23. Qe2 {[%clk 0:02:07]}
23... Qg6 {[%clk 0:01:42.5]} 24. f3 {[%clk 0:02:06.5]} 24... Qg5 {[%clk
0:01:36.9]} 25. Nc4 {[%clk 0:01:52.5]} 25... g6 {[%clk 0:01:24.3]} 26. Nxd6
{[%clk 0:01:50.8]} 26... Rxd6 {[%clk 0:01:25.2]} 27. g3 {[%clk 0:01:49.5]} 27...
h5 {[%clk 0:01:24.6]} 28. Kf2 {[%clk 0:01:39.1]} 28... h4 {[%clk 0:01:21.8]} 29.
Qe3 {[%clk 0:01:31.2]} 29... Qe7 {[%clk 0:01:15.5]} 30. g4 {[%clk 0:01:28.2]}
30... Kg7 {[%clk 0:01:13.9]} 31. h3 {[%clk 0:01:28.2]} 31... Qd8 {[%clk
0:00:54.5]} 32. Rg1 {[%clk 0:01:25]} 32... g5 {[%clk 0:00:48.8]} 33. Rc1 {[%clk
0:01:23]} 33... Kg6 {[%clk 0:00:47.9]} 34. Qd2 {[%clk 0:01:19.8]} 34... Qd7
{[%clk 0:00:45.7]} 35. b3 {[%clk 0:01:16.6]} 35... Qb7 {[%clk 0:00:44.6]} 36. b4
{[%clk 0:01:15.6]} 36... Qa6 {[%clk 0:00:40]} 37. bxc5 {[%clk 0:01:13.7]} 37...
bxc5 {[%clk 0:00:40.9]} 38. a5 {[%clk 0:00:58.5]} 38... Qb5 {[%clk 0:00:40.2]}
39. Qc3 {[%clk 0:00:56]} 39... Rf6 {[%clk 0:00:35.2]} 40. Qxc5 {[%clk
0:00:52.7]} 40... Qd3 {[%clk 0:00:33.8]} 41. Qe3 {[%clk 0:00:48.9]} 41... Qb5
{[%clk 0:00:32.8]} 42. Qc3 {[%clk 0:00:46.7]} 42... Qa4 {[%clk 0:00:21.3]} 43.
Rc2 {[%clk 0:00:39.5]} 43... Qxe4 {[%clk 0:00:18.4]} 44. Rd2 {[%clk 0:00:34]}
44... Qf4 {[%clk 0:00:16.5]} 45. d6 {[%clk 0:00:30.3]} 45... Qg3+ {[%clk
0:00:12.8]} 46. Ke2 {[%clk 0:00:30.1]} 46... Qg2+ {[%clk 0:00:12.3]} 47. Kd1
{[%clk 0:00:30.4]} 47... Qf1+ {[%clk 0:00:12.5]} 48. Kc2 {[%clk 0:00:30.7]}
48... Rxf3 {[%clk 0:00:12.8]} 49. Rd3 {[%clk 0:00:21.9]} 49... Rf2+ {[%clk
0:00:09.3]} 50. Kb3 {[%clk 0:00:19.8]} 50... Qb1+ {[%clk 0:00:08.7]} 51. Kc4
{[%clk 0:00:20]} 51... Rf4+ {[%clk 0:00:08.9]} 52. Kc5 {[%clk 0:00:19.8]} 52...
a6 {[%clk 0:00:07.7]} 53. Kc6 {[%clk 0:00:18]} 53... Qb5+ {[%clk 0:00:07.7]} 54.
Kc7 {[%clk 0:00:18.3]} 54... Rc4+ {[%clk 0:00:08.5]} 55. Qxc4 {[%clk 0:00:18.7]}
55... Qxc4+ {[%clk 0:00:09.4]} 56. Kd8 {[%clk 0:00:18.3]} 56... Qxd3 {[%clk
0:00:10.2]} 57. d7 {[%clk 0:00:19.2]} 57... Kf6 {[%clk 0:00:10.3]} 58. Ke8
{[%clk 0:00:19.2]} 58... Qxd7+ {[%clk 0:00:10.1]} 59. Kxd7 {[%clk 0:00:19.2]}
59... e4 {[%clk 0:00:11]} 0-1